[Event "XVI Calvia Amateur Open 2019"]
[Site "Calvia"]
[Date "2019.10.13"]
[Round "9.6"]
[White "Thakoerdien, Jerrel"]
[Black "Amengual Perello, Jordi"]
[Result "1/2-1/2"]
[ECO "E05"]
[WhiteElo "2149"]
[BlackElo "2087"]
[Annotator "NA"]
[PlyCount "121"]
[EventDate "2019.10.05"]
[EventType "swiss"]
[EventCountry "ESP"]
[SourceTitle "playchess.com"]
[Source "ChessBase"]
[SourceQuality "1"]
[TimeControl "40/5400+30:900+30"]

1. d4 {[%emt 0:00:00]} Nf6 {[%emt 0:00:00]} 2. Nf3 {[%emt 0:00:00]} e6 {[%emt 0:00:47]} 3. g3 {[%emt 0:00:00]} d5 {[%emt 0:03:21]} 4. Bg2 {[%emt 0:00:39]} Be7 {[%emt 0:03:21]} 5. O-O {[%emt 0:00:32]} O-O {[%emt 0:00:13]} 6. c4 {[%emt 0:00:50]} dxc4 {[%emt 0:05:37]} 7. Qc2 {[%emt 0:13:33]} b5 {[%emt 0:01:56]} 8. a4 {[%emt 0:05:48]} b4 {[%emt 0:00:33]} 9. Qxc4 {[%emt 0:01:41]} Ba6 {[%emt 0:00:19]} 10. Qc2 {[%emt 0:00:52]} Nbd7 {[%emt 0:00:23]} 11. Re1 {[%emt 0:09:34]} c5 {[%emt 0:00:48]} 12. b3 {[%emt 0:02:10]} Rc8 {[%emt 0:00:52]} 13. Qa2 {[%emt 0:05:14]} c4 {[%emt 0:03:22]} 14. bxc4 {[%emt 0:00:45]} Bxc4 {[%emt 0:00:08]} 15. Qb2 {[%emt 0:00:13]} a5 {[%emt 0:02:49]} 16. Nbd2 {[%emt 0:03:53]} Bd5 {[%emt 0:01:21]} 17. e4 {[%emt 0:02:47]} Bc6 {[%emt 0:00:22]} 18. d5 {[%emt 0:05:02]} exd5 {[%emt 0:04:09]} 19. e5 {[%emt 0:02:16]} Ne4 {[%emt 0:00:52]} 20. Nd4 {[%emt 0:05:28]} Ndc5 {[%emt 0:03:41]} 21. Nxc6 {[%emt 0:03:09]} Rxc6 {[%emt 0:00:23]} 22. Bf1 {[%emt 0:03:17]} Nc3 {[%emt 0:01:52]} 23. Qc2 {[%emt 0:01:45]} Qb6 {[%emt 0:02:19]} 24. Bb2 {[%emt 0:03:22]} N5xa4 {[%emt 0:04:11]} 25. Rxa4 {[%emt 0:00:58]} b3 {[%emt 0:00:20]} 26. Qd3 {[%emt 0:06:12]} Nxa4 {[%emt 0:00:38]} 27. Bd4 {[%emt 0:00:13]} Bc5 {[%emt 0:02:27]} 28. Nxb3 {[%emt 0:01:17]} Bxd4 {[%emt 0:00:13]} 29. Nxd4 {[%emt 0:00:03]} Rc3 {[%emt 0:01:22]} 30. Qd1 {[%emt 0:00:16]} Qb4 {[%emt 0:02:47]} 31. e6 {[%emt 0:03:40]} Nb2 {[%emt 0:23:02]} 32. Qg4 {[%emt 0:06:31]} fxe6 {[%emt 0:10:57]} 33. Qxe6+ {[%emt 0:04:15]} Kh8 {[%emt 0:00:08]} 34. Qe5 {[%emt 0:00:56]} Nd3 {[%emt 0:01:32]} 35. Bxd3 {[%emt 0:02:23]} Rxd3 {[%emt 0:00:24]} 36. Ne6 {[%emt 0:00:19]} Rg8 {[%emt 0:01:48]} 37. Ng5 {[%emt 0:00:37]} Rf8 {[%emt 0:02:46]} 38. Ne6 {[%emt 0:01:02]} Rf6 {[%emt 0:01:30]} 39. Rc1 {[%emt 0:04:57]} h6 {[%emt 0:09:50]} 40. Qc7 {[%emt 0:00:00]} Rxe6 {[%emt 0:00:00]} 41. Qc8+ {[%emt 0:02:31]} Kh7 {[%emt 0:08:22]} 42. Qxe6 {[%emt 0:00:07]} Qe4 {[%emt 0:04:13]} 43. Qxe4+ {[%emt 0:00:34]} dxe4 {[%emt 0:00:03]} 44. Rc4 {[%emt 0:08:31]} e3 {[%emt 0:00:21]} 45. fxe3 {[%emt 0:00:31]} Rxe3 {[%emt 0:00:02]} 46. Rc5 {[%emt 0:03:27]} Ra3 {[%emt 0:00:51]} 47. Kf2 {[%emt 0:00:41]} g5 {[%emt 0:01:04]} 48. h3 {[%emt 0:01:00]} a4 {[%emt 0:01:09]} 49. Ra5 {[%emt 0:00:19]} Ra2+ {[%emt 0:00:42]} 50. Kf3 {[%emt 0:00:09]} Ra3+ {[%emt 0:00:21]} 51. Kg4 {[%emt 0:01:02]} Kg7 {[%emt 0:03:21]} 52. Ra7+ {[%emt 0:00:19]} Kg6 {[%emt 0:00:12]} 53. Ra6+ {[%emt 0:00:04]} Kg7 {[%emt 0:00:11]} 54. Ra7+ {[%emt 0:00:04]} Kf8 {[%emt 0:00:32]} 55. Rh7 {[%emt 0:01:32]} Ra1 {[%emt 0:00:18]} 56. Rxh6 {[%emt 0:00:18]} a3 {[%emt 0:00:04]} 57. Ra6 {[%emt 0:01:33]} a2 {[%emt 0:00:17]} 58. Ra7 {[%emt 0:00:29]} Kg8 {[%emt 0:00:26]} 59. Kh5 {[%emt 0:01:17]} Rg1 {[%emt 0:01:09]} 60. Rxa2 {[%emt 0:00:18]} Rxg3 {[%emt 0:00:02]} 61. Kg6 {[%emt 0:00:22]} 1/2-1/2